fUSD/lending_fUSD_20240214
["ID","MTS","AMOUNT","RATE_DAILY","PERIOD"]
[314000004,1707919862486,-500.0,0.00037534,2]
[314000005,1707919862495,-500.0,0.00037534,2]
[314000006,1707919862505,-500.0,0.00037534,2]
[314000007,1707919862514,-920.97,0.00037534,2]
[314000008,1707919862524,-590.59,0.00037534,2]
[314000009,1707919862533,-500.0,0.00037534,2]
[314000010,1707919862543,-500.0,0.00037534,2]
[314000011,1707919862554,-500.0,0.00037534,2]
[314000012,1707919862563,-500.0,0.00037534,2]
[314000013,1707919862573,-500.0,0.00037534,2]
[314000014,1707919862582,-500.0,0.00037534,2]
[314000015,1707919862592,-500.0,0.00037534,2]
[314000016,1707919862602,-1071.41,0.00037534,2]
[314000017,1707919862612,-500.0,0.00037534,2]
[314000018,1707919862621,-500.0,0.00037534,2]
[314000019,1707919862631,-500.0,0.00037534,2]
[314000020,1707919862641,-650.92,0.00037534,2]
[314000021,1707919862651,-903.14,0.00037534,2]
[314000022,1707919862661,-500.0,0.00037534,2]
[314000023,1707919862671,-1209.78,0.00037534,2]
[314000024,1707919862681,-500.0,0.00037534,2]
[314000025,1707919862691,-500.0,0.00037534,2]
[314000026,1707919862700,-837.79,0.00037534,2]
[314000027,1707919862710,-500.0,0.00037534,2]
[314000028,1707919862720,-500.0,0.00037534,2]
[314000029,1707919862915,-500.0,0.00037534,2]
[314000030,1707919862925,-500.0,0.00037534,2]
[314000031,1707919862936,-606.3,0.00037534,2]
[314000032,1707919862949,-500.0,0.00037534,2]
[314000033,1707919862958,-500.0,0.00037534,2]
[314000034,1707919862967,-585.85,0.00037534,2]
[314000035,1707919862977,-585.89,0.00037534,2]
[314000036,1707919862987,-1310.41,0.00037534,2]
[314000037,1707919862996,-500.0,0.00037534,2]
[314000038,1707919863006,-500.0,0.00037534,2]
[314000039,1707919863017,-890.1,0.00037534,2]
[314000040,1707919863028,-500.0,0.00037534,2]
[314000041,1707919863039,-1526.27,0.00037534,2]
[314000042,1707919863049,-500.0,0.00037534,2]
[314000043,1707919863058,-647.23,0.00037534,2]
[314000044,1707919863067,-597.64,0.00037534,2]
[314000045,1707919863076,-500.0,0.00037534,2]
[314000046,1707919863085,-500.0,0.00037534,2]
[314000047,1707919863094,-500.0,0.00037534,2]
[314000048,1707919863104,-500.0,0.00037534,2]
[314000049,1707919863114,-655.16,0.00037534,2]
[314000050,1707919863124,-500.0,0.00037534,2]
[314000051,1707919863134,-346.8247629,0.00037534,2]
[314000052,1707919863143,-971.55,0.00037534,2]
[314000053,1707919863152,-500.0,0.00037534,2]
[314000054,1707919863162,-500.0,0.00037534,2]
[314000055,1707919863171,-500.0,0.00037534,2]
[314000056,1707919863180,-690.8,0.00037534,2]
[314000057,1707919863189,-500.0,0.00037534,2]
[314000058,1707919863199,-500.0,0.00037534,2]
[314000059,1707919863207,-754.02,0.00037534,2]
[314000060,1707919863216,-500.0,0.00037534,2]
[314000061,1707919863225,-500.0,0.00037534,2]
[314000062,1707919863236,-500.0,0.00037534,2]
[314000063,1707919863245,-500.0,0.00037534,2]
[314000064,1707919863254,-606.69454588,0.00037534,2]
[314000065,1707919863263,-1056.85,0.00037534,2]
[314000066,1707919863272,-760.3,0.00037534,2]
[314000067,1707919863281,-500.0,0.00037534,2]
[314000068,1707919863290,-500.0,0.00037534,2]
[314000069,1707919863300,-270.6925751,0.00037534,2]
[314000070,1707919863309,-500.0,0.00037534,2]
[314000071,1707919863318,-500.0,0.00037534,2]
[314000072,1707919863327,-500.0,0.00037534,2]
[314000073,1707919863336,-500.0,0.00037534,2]
[314000074,1707919863346,-500.0,0.00037534,2]
[314000075,1707919863355,-500.0,0.00037534,2]
[314000076,1707919863365,-500.0,0.00037534,2]
[314000077,1707919863374,-514.82,0.00037534,2]
[314000078,1707919863383,-500.0,0.00037534,2]
[314000079,1707919863392,-500.0,0.00037534,2]
[314000080,1707919863402,-500.0,0.00037534,2]
[314000081,1707919863411,-902.0,0.00037534,2]
[314000082,1707919863421,-500.0,0.00037534,2]
[314000083,1707919863431,-500.0,0.00037534,2]
[314000084,1707919863440,-983.7,0.00037534,2]
[314000085,1707919863450,-604.35,0.00037534,2]
[314000086,1707919863459,-500.0,0.00037534,2]
[314000087,1707919863468,-500.0,0.00037534,2]
[314000088,1707919863479,-500.0,0.00037534,2]
[314000089,1707919863488,-500.0,0.00037534,2]
[314000090,1707919863498,-500.0,0.00037534,2]
[314000091,1707919863507,-545.46,0.00037534,2]
[314000092,1707919863517,-500.0,0.00037534,2]
[314000093,1707919863527,-548.62,0.00037534,2]
[314000094,1707919863537,-500.0,0.00037534,2]
[314000095,1707919863547,-574.36,0.00037534,2]
[314000096,1707919863556,-500.0,0.00037534,2]
[314000097,1707919863566,-950.52,0.00037534,2]
[314000098,1707919863575,-500.0,0.00037534,2]
[314000099,1707919863585,-632.98,0.00037534,2]
[314000100,1707919863594,-500.0,0.00037534,2]
[314000101,1707919863603,-500.0,0.00037534,2]
[314000102,1707919863612,-500.0,0.00037534,2]
[314000103,1707919863621,-500.0,0.00037534,2]
[314000104,1707919863630,-741.74,0.00037534,2]
[314000105,1707919863640,-531.63,0.00037534,2]
[314000106,1707919863648,-500.0,0.00037534,2]
[314000107,1707919863658,-500.0,0.00037534,2]
[314000108,1707919863668,-500.0,0.00037534,2]
[314000109,1707919863679,-500.0,0.00037534,2]
[314000110,1707919863690,-500.0,0.00037534,2]
[314000111,1707919863700,-500.0,0.00037534,2]
[314000112,1707919863709,-500.0,0.00037534,2]
[314000113,1707919863718,-506.05427492,0.00037534,2]
[314000114,1707919863728,-500.0,0.00037534,2]
[314000115,1707919863737,-500.0,0.00037534,2]
[314000116,1707919863747,-629.5,0.00037534,2]
[314000117,1707919863756,-500.0,0.00037534,2]
[314000118,1707919863765,-500.0,0.00037534,2]
[314000119,1707919863773,-769.16,0.00037534,2]
[314000120,1707919863783,-505.19132651,0.00037534,2]
[314000121,1707919863792,-667.34,0.00037534,2]
[314000122,1707919863801,-500.0,0.00037534,2]
[314000123,1707919863810,-500.0,0.00037534,2]
[314000124,1707919863819,-500.0,0.00037534,2]
[314000125,1707919863828,-909.17,0.00037534,2]
[314000126,1707919863838,-500.0,0.00037534,2]
[314000127,1707919863847,-500.0,0.00037534,2]
[314000128,1707919863857,-500.0,0.00037534,2]
[314000129,1707919863866,-594.79,0.00037534,2]
[314000130,1707919863876,-473.86547617,0.00037534,2]
[314000131,1707919863885,-500.0,0.00037534,2]
[314000132,1707919863895,-500.0,0.00037534,2]
[314000133,1707919863903,-631.37,0.00037534,2]
[314000134,1707919863913,-541.43,0.00037534,2]
[314000135,1707919863922,-1176.19,0.00037534,2]
[314000136,1707919863931,-500.0,0.00037534,2]
[314000137,1707919863942,-500.0,0.00037534,2]
[314000138,1707919863953,-500.0,0.00037534,2]
[314000139,1707919863961,-500.0,0.00037534,2]
[314000140,1707919863970,-500.0,0.00037534,2]
[314000141,1707919863980,-500.0,0.00037534,2]
[314000142,1707919863989,-500.0,0.00037534,2]
[314000143,1707919863997,-618.15,0.00037534,2]
[314000144,1707919864006,-831.66,0.00037534,2]
[314000145,1707919864015,-500.0,0.00037534,2]
[314000146,1707919864025,-500.0,0.00037534,2]
[314000147,1707919864034,-571.72,0.00037534,2]
[314000148,1707919864043,-1511.8,0.00037534,2]
[314000149,1707919864052,-588.83,0.00037534,2]
[314000150,1707919864061,-500.0,0.00037534,2]
[314000151,1707919864070,-500.0,0.00037534,2]
[314000152,1707919864079,-500.0,0.00037534,2]
[314000153,1707919864089,-500.0,0.00037534,2]
[314000154,1707919864098,-564.67,0.00037534,2]
[314000155,1707919864108,-500.0,0.00037534,2]
[314000156,1707919864117,-1143.76,0.00037534,2]
[314000157,1707919864127,-550.31,0.00037534,2]
[314000158,1707919864136,-1311.08,0.00037534,2]
[314000159,1707919864145,-794.07,0.00037534,2]
[314000160,1707919864154,-500.0,0.00037534,2]
[314000161,1707919864166,-810.38,0.00037534,2]
[314000162,1707919864177,-214.98739013,0.00037534,2]
[314000163,1707919864186,-310.21501306,0.00037534,2]
[314000164,1707919864195,-516.37,0.00037534,2]
[314000165,1707919864203,-1395.91,0.00037534,2]
[314000166,1707919864213,-500.0,0.00037534,2]
[314000167,1707919864223,-1020.26,0.00037534,2]
[314000168,1707919864233,-500.0,0.00037534,2]
[314000169,1707919864242,-500.0,0.00037534,2]
[314000170,1707919864252,-500.0,0.00037534,2]
[314000171,1707919864262,-500.0,0.00037534,2]
[314000172,1707919864271,-739.01,0.00037534,2]
[314000173,1707919864281,-718.34,0.00037534,2]
[314000174,1707919864291,-938.91,0.00037534,2]
[314000175,1707919864300,-500.0,0.00037534,2]
[314000176,1707919864310,-845.99,0.00037534,2]
[314000177,1707919864319,-500.0,0.00037534,2]
[314000178,1707919864328,-500.0,0.00037534,2]
[314000179,1707919864338,-500.0,0.00037534,2]
[314000180,1707919864347,-500.0,0.00037534,2]
[314000181,1707919864356,-500.0,0.00037534,2]
[314000182,1707919864366,-719.24,0.00037534,2]
[314000183,1707919864375,-500.0,0.00037534,2]
[314000184,1707919864385,-733.62,0.00037534,2]
[314000185,1707919864394,-1039.2,0.00037534,2]
[314000186,1707919864404,-500.0,0.00037534,2]
[314000187,1707919864413,-500.0,0.00037534,2]
[314000188,1707919864423,-546.99,0.00037534,2]
[314000189,1707919864432,-500.0,0.00037534,2]
[314000190,1707919864442,-500.0,0.00037534,2]
[314000191,1707919864452,-1068.2,0.00037534,2]
[314000192,1707919864463,-500.0,0.00037534,2]
[314000193,1707919864473,-539.12,0.00037534,2]
[314000194,1707919864487,-500.0,0.00037534,2]
[314000195,1707919864498,-500.0,0.00037534,2]
[314000196,1707919864508,-500.0,0.00037534,2]
[314000197,1707919864522,-1593.23,0.00037534,2]
[314000198,1707919864532,-1249.49,0.00037534,2]
[314000199,1707919864543,-594.46,0.00037534,2]
[314000200,1707919864553,-716.65,0.00037534,2]
[314000201,1707919864565,-500.0,0.00037534,2]
[314000202,1707919864576,-1125.6,0.00037534,2]
[314000203,1707919864587,-500.0,0.00037534,2]
[314000204,1707919864598,-500.0,0.00037534,2]
[314000205,1707919864608,-500.0,0.00037534,2]
[314000206,1707919864618,-500.0,0.00037534,2]
[314000207,1707919864627,-500.0,0.00037534,2]
[314000208,1707919864637,-892.82,0.00037534,2]
[314000209,1707919864646,-500.0,0.00037534,2]
[314000210,1707919864655,-549.02,0.00037534,2]
[314000211,1707919864665,-828.71,0.00037534,2]
[314000212,1707919864675,-500.0,0.00037534,2]
[314000213,1707919864685,-500.0,0.00037534,2]
[314000214,1707919864695,-500.0,0.00037534,2]
[314000215,1707919864705,-500.0,0.00037534,2]
[314000216,1707919864715,-786.53,0.00037534,2]
[314000217,1707919864725,-500.0,0.00037534,2]
[314000218,1707919864741,-500.0,0.00037534,2]
[314000219,1707919864750,-500.0,0.00037534,2]
[314000220,1707919864759,-644.84,0.00037534,2]
[314000221,1707919864769,-573.43,0.00037534,2]
[314000222,1707919864778,-500.0,0.00037534,2]
[314000223,1707919864788,-500.0,0.00037534,2]
[314000224,1707919864797,-500.0,0.00037534,2]
[314000225,1707919864807,-500.0,0.00037534,2]
[314000226,1707919864816,-500.0,0.00037534,2]
[314000227,1707919864826,-500.0,0.00037534,2]
[314000228,1707919864835,-746.2,0.00037534,2]
[314000229,1707919864844,-500.0,0.00037534,2]
[314000230,1707919864854,-524.55,0.00037534,2]
[314000231,1707919864863,-605.39,0.00037534,2]
[314000232,1707919864872,-979.62,0.00037534,2]
[314000233,1707919864881,-623.16,0.00037534,2]
[314000234,1707919864890,-851.49,0.00037534,2]
[314000235,1707919864899,-500.0,0.00037534,2]
[314000236,1707919864908,-382.34002237,0.00037534,2]
[314000237,1707919864917,-500.0,0.00037534,2]
[314000238,1707919864927,-845.33,0.00037534,2]
[314000239,1707919864937,-500.0,0.00037534,2]
[314000240,1707919864948,-525.61,0.00037534,2]
[314000241,1707919864957,-3843.36,0.00037534,2]
[314000242,1707919864966,-500.0,0.00037534,2]
[314000243,1707919864975,-772.57,0.00037534,2]
[314000244,1707919864989,-500.0,0.00037534,2]
[314000245,1707919864998,-642.94099338,0.00037534,2]
[314000246,1707919865008,-712.25,0.00037534,2]
[314000247,1707919865017,-500.0,0.00037534,2]
[314000248,1707919865027,-1388.54,0.00037534,2]
[314000249,1707919865037,-500.0,0.00037534,2]
[314000250,1707919865047,-500.0,0.00037534,2]
[314000251,1707919865057,-500.0,0.00037534,2]
[314000252,1707919865066,-5272.34,0.00037534,2]
[314000253,1707919865085,-500.0,0.00037534,2]
[314000254,1707919865097,-986.05,0.00037534,2]
[314000255,1707919865106,-500.0,0.00037534,2]
[314000256,1707919865115,-500.0,0.00037534,2]
[314000257,1707919865125,-6246.09,0.00037534,2]
[314000258,1707919865135,-178.89,0.00037534,2]
[314000259,1707919865144,-865.26,0.00037534,2]
[314000260,1707919865154,-605.48,0.00037534,2]
[314000261,1707919865164,-606.58,0.00037534,2]
[314000262,1707919865174,-889.82,0.00037534,2]
[314000263,1707919865184,-663.11,0.00037534,2]
[314000264,1707919865193,-897.46,0.00037534,2]
[314000265,1707919865203,-500.0,0.00037534,2]
[314000266,1707919865212,-7824.22,0.00037534,2]
[314000267,1707919865222,-500.0,0.00037534,2]
[314000268,1707919865233,-500.0,0.00037534,2]
[314000269,1707919865242,-1108.54,0.00037534,2]
[314000270,1707919865252,-3860.08,0.00037534,2]
[314000271,1707919865262,-3812.58,0.00037534,2]
[314000272,1707919865273,-250.88882364,0.00037534,2]
[314000273,1707919865283,-706.11,0.00037534,2]
[314000274,1707919865293,-1033.16,0.00037534,2]
[314000275,1707919865303,-663.74,0.00037534,2]
[314000276,1707919865313,-4473.58,0.00037534,2]
[314000277,1707919865322,-500.0,0.00037534,2]
[314000278,1707919865333,-500.0,0.00037534,2]
[314000279,1707919865342,-1157.26,0.00037534,2]
[314000280,1707919865352,-500.0,0.00037534,2]
[314000281,1707919865361,-1152.81,0.00037534,2]
[314000282,1707919865371,-500.0,0.00037534,2]
[314000283,1707919865381,-500.0,0.00037534,2]
[314000284,1707919865390,-553.56,0.00037534,2]
[314000285,1707919865400,-1028.9,0.00037534,2]
[314000286,1707919865409,-1547.32,0.00037534,2]
[314000287,1707919865419,-552.26,0.00037534,2]
[314000288,1707919865429,-500.0,0.00037534,2]
[314000289,1707919865438,-500.0,0.00037534,2]
[314000290,1707919865448,-500.0,0.00037534,2]
[314000291,1707919865457,-500.0,0.00037534,2]
[314000292,1707919865467,-500.0,0.00037534,2]
[314000293,1707919865477,-528.71,0.00037534,2]
[314000294,1707919865491,-3321.65,0.00037534,2]
[314000295,1707919865501,-2166.47,0.00037534,2]
[314000296,1707919865511,-500.0,0.00037534,2]
[314000297,1707919865521,-500.0,0.00037534,2]
[314000298,1707919865530,-500.0,0.00037534,2]
[314000299,1707919865540,-800.13,0.00037534,2]
[314000300,1707919865549,-500.0,0.00037534,2]
[314000301,1707919865559,-1147.73,0.00037534,2]
[314000302,1707919865568,-500.0,0.00037534,2]
[314000303,1707919865578,-500.0,0.00037534,2]
[314000304,1707919865589,-500.0,0.00037534,2]
[314000305,1707919865599,-500.0,0.00037534,2]
[314000306,1707919865609,-573.73,0.00037534,2]
[314000307,1707919865619,-33307.0,0.00037534,2]
[314000308,1707919865628,-500.0,0.00037534,2]
[314000309,1707919865638,-660.61,0.00037534,2]
[314000310,1707919865648,-788.65,0.00037534,2]
[314000311,1707919865657,-7494.55,0.00037534,2]
[314000312,1707919865666,-500.0,0.00037534,2]
[314000313,1707919865676,-567.37,0.00037534,2]
[314000314,1707919865685,-500.0,0.00037534,2]
[314000315,1707919865694,-2976.44,0.00037534,2]
[314000316,1707919865704,-731.57,0.00037534,2]
[314000317,1707919865713,-1813.77,0.00037534,7]
[314000318,1707919865723,-802.93,0.00037534,2]
[314000319,1707919865735,-500.0,0.00037534,2]
[314000320,1707919865745,-500.0,0.00037534,2]
[314000321,1707919865755,-552.41,0.00037534,2]
[314000322,1707919865765,-500.0,0.00037534,2]
[314000323,1707919865775,-578.94,0.00037534,2]
[314000324,1707919865785,-500.0,0.00037534,2]
[314000325,1707919865796,-1069.4,0.00037534,2]
[314000326,1707919865806,-953.33,0.00037534,2]
[314000327,1707919865815,-1911.34,0.00037534,2]
[314000328,1707919865825,-1999.14,0.00037534,2]
[314000329,1707919865834,-3204.8,0.00037534,2]
[314000330,1707919865844,-547.72,0.00037534,2]
[314000331,1707919865854,-1089.7,0.00037534,2]
[314000332,1707919865863,-501.74,0.00037534,2]
[314000333,1707919865872,-527.90689567,0.00037534,2]
[314000334,1707919865882,-734.97,0.00037534,2]
[314000335,1707919865891,-500.0,0.00037534,2]
[314000336,1707919865900,-500.0,0.00037534,2]
[314000337,1707919865910,-500.0,0.00037534,2]
[314000338,1707919865919,-881.11,0.00037534,2]
[314000339,1707919865929,-2920.53,0.00037534,2]
[314000340,1707919865938,-1003.7,0.00037534,2]
[314000341,1707919865950,-780.27,0.00037534,2]
[314000342,1707919865960,-2201.32,0.00037534,2]
[314000343,1707919865969,-500.0,0.00037534,2]
[314000344,1707919865978,-500.0,0.00037534,2]
[314000345,1707919865989,-500.0,0.00037534,2]
[314000346,1707919865999,-827.67,0.00037534,2]
[314000347,1707919866008,-599.15,0.00037534,2]
[314000348,1707919866017,-1841.92,0.00037534,2]
[314000349,1707919866027,-500.0,0.00037534,2]
[314000350,1707919866037,-8394.74,0.00037534,2]
[314000351,1707919866046,-3503.35,0.00037534,2]
[314000352,1707919866056,-5433.39,0.00037534,2]
[314000353,1707919866065,-753.07,0.00037534,2]
[314000354,1707919866074,-508.66,0.00037534,2]
[314000355,1707919866083,-818.9,0.00037534,2]
[314000356,1707919866092,-500.0,0.00037534,2]
[314000357,1707919866102,-775.37,0.00037534,2]
[314000358,1707919866111,-3035.27,0.00037534,2]
[314000359,1707919866121,-500.0,0.00037534,2]
[314000360,1707919866131,-500.0,0.00037534,2]
[314000361,1707919866140,-500.0,0.00037534,2]
[314000362,1707919866149,-1167.66,0.00037534,2]
[314000363,1707919866158,-500.0,0.00037534,2]
[314000364,1707919866168,-500.0,0.00037534,2]
[314000365,1707919866177,-500.0,0.00037534,2]
[314000366,1707919866186,-4046.5,0.00037534,2]
[314000367,1707919866196,-500.0,0.00037534,2]
[314000368,1707919866205,-603.11,0.00037534,2]
[314000369,1707919866214,-1122.13,0.00037534,2]
[314000370,1707919866223,-10290.46,0.00037534,2]
[314000371,1707919866234,-500.0,0.00037534,2]
[314000372,1707919866244,-2573.1,0.00037534,2]
[314000373,1707919866254,-500.0,0.00037534,2]
[314000374,1707919866263,-222.08710636,0.00037534,2]
[314000375,1707919866273,-500.0,0.00037534,2]
[314000376,1707919866283,-500.0,0.00037534,2]
[314000377,1707919866292,-1975.43,0.00037534,2]
[314000378,1707919866302,-500.0,0.00037534,2]
[314000379,1707919866312,-500.0,0.00037534,2]
[314000380,1707919866322,-706.35,0.00037534,2]
[314000381,1707919866335,-1127.38,0.00037534,2]
[314000382,1707919866345,-500.0,0.00037534,2]
[314000383,1707919866354,-562.45,0.00037534,2]
[314000384,1707919866365,-17798.04,0.00037534,2]
[314000385,1707919866374,-2886.82,0.00037534,2]
[314000386,1707919866384,-3212.99,0.00037534,2]
[314000387,1707919866394,-1450.42,0.00037534,2]
[314000388,1707919866404,-713.84,0.00037534,2]
[314000389,1707919866413,-2733.78,0.00037534,2]
[314000390,1707919866423,-4395.09,0.00037534,7]
[314000391,1707919866433,-1006.34,0.00037534,2]
[314000392,1707919866695,-500.0,0.00037534,2]
[314000393,1707919866723,-500.0,0.00037534,2]
[314000394,1707919866735,-558.37,0.00037534,2]
[314000395,1707919866745,-684.42,0.00037534,2]
[314000396,1707919866756,-670.37,0.00037534,2]
[314000397,1707919866768,-500.0,0.00037534,2]
[314000398,1707919866778,-500.0,0.00037534,2]
[314000399,1707919866788,-2669.96,0.00037534,2]
[314000400,1707919866798,-1036.48,0.00037534,2]
[314000401,1707919866807,-613.62,0.00037534,2]
[314000402,1707919866817,-500.0,0.00037534,2]
[314000403,1707919866827,-157.68764963,0.00037534,2]
[314000404,1707919866837,-578.29,0.00037534,2]
[314000405,1707919866847,-1534.54,0.00037534,2]
[314000406,1707919866856,-500.0,0.00037534,2]
[314000407,1707919866865,-500.0,0.00037534,2]
[314000408,1707919866875,-500.0,0.00037534,2]
[314000409,1707919866885,-674.53,0.00037534,2]
[314000410,1707919866894,-500.0,0.00037534,2]
[314000411,1707919866904,-594.16,0.00037534,2]
[314000412,1707919866913,-1239.77,0.00037534,2]
[314000413,1707919866923,-881.08,0.00037534,2]
[314000414,1707919866933,-1095.34,0.00037534,2]
[314000415,1707919866943,-500.0,0.00037534,2]
[314000416,1707919866954,-2412.01,0.00037534,2]
[314000417,1707919866964,-500.0,0.00037534,2]
[314000418,1707919866974,-500.0,0.00037534,2]
[314000419,1707919866985,-606.93,0.00037534,2]
[314000420,1707919866994,-630.62,0.00037534,2]
[314000421,1707919867004,-500.0,0.00037534,2]
[314000422,1707919867013,-1217.79,0.00037534,2]
[314000423,1707919867025,-4591.8,0.00037534,2]
[314000424,1707919867034,-999.32,0.00037534,2]
[314000425,1707919867043,-3354.32,0.00037534,2]
[314000426,1707919867053,-4861.03,0.00037534,2]
[314000427,1707919867062,-521.04,0.00037534,2]
[314000428,1707919867072,-1085.93,0.00037534,2]
[314000429,1707919867081,-946.08,0.00037534,2]
[314000430,1707919867091,-1052.19,0.00037534,2]
[314000431,1707919867100,-945.67,0.00037534,2]
[314000432,1707919867110,-523.62,0.00037534,2]
[314000433,1707919867120,-500.0,0.00037534,2]
[314000434,1707919867130,-771.12,0.00037534,2]
[314000435,1707919867139,-837.15,0.00037534,2]
[314000436,1707919867149,-11300.89,0.00037534,2]
[314000437,1707919867159,-500.0,0.00037534,2]
[314000438,1707919867168,-10336.64,0.00037534,2]
[314000439,1707919867178,-925.14,0.00037534,2]
[314000440,1707919867187,-500.0,0.00037534,2]
[314000441,1707919867197,-645.36,0.00037534,2]
[314000442,1707919867206,-500.0,0.00037534,2]
[314000443,1707919867216,-2369.18,0.00037534,2]
[314000444,1707919867226,-500.0,0.00037534,2]
[314000445,1707919867238,-949.36,0.00037534,2]
[314000446,1707919867248,-610.83,0.00037534,2]
[314000447,1707919867257,-6266.55,0.00037534,2]
[314000448,1707919867267,-841.34,0.00037534,2]
[314000449,1707919867277,-3603.61,0.00037534,2]
[314000450,1707919867286,-9338.45,0.00037534,2]
[314000451,1707919867295,-1469.3,0.00037534,2]
[314000452,1707919867305,-1040.93,0.00037534,2]
[314000453,1707919867314,-500.0,0.00037534,2]
[314000454,1707919867326,-500.0,0.00037534,2]
[314000455,1707919867336,-913.16,0.00037534,2]
[314000456,1707919867348,-860.7,0.00037534,2]
[314000457,1707919867358,-699.89,0.00037534,2]
[314000458,1707919867367,-500.0,0.00037534,2]
[314000459,1707919867377,-577.91,0.00037534,2]
[314000460,1707919867387,-500.0,0.00037534,2]
[314000461,1707919867396,-3328.13,0.00037534,2]
[314000462,1707919867406,-775.14,0.00037534,2]
[314000463,1707919867416,-500.0,0.00037534,2]
[314000464,1707919867425,-775.14,0.00037534,2]
[314000465,1707919867434,-500.0,0.00037534,2]
[314000466,1707919867444,-1260.25,0.00037534,2]
[314000467,1707919867453,-890.36,0.00037534,2]
[314000468,1707919867463,-868.71,0.00037534,2]
[314000469,1707919867472,-500.0,0.00037534,2]
[314000470,1707919867482,-2305.66,0.00037534,2]
[314000471,1707919867491,-279.26909771,0.00037534,2]
[314000472,1707919867500,-1199.52,0.00037534,2]
[314000473,1707919867509,-863.13,0.00037534,2]
[314000474,1707919867519,-290.8335617,0.00037534,2]
[314000475,1707919867528,-898.34,0.00037534,2]
[314000476,1707919867537,-769.11,0.00037534,2]
[314000477,1707919867547,-909.31,0.00037534,2]
[314000478,1707919867557,-811.27,0.00037534,2]
[314000479,1707919867566,-1548.56,0.00037534,2]
[314000480,1707919867576,-500.0,0.00037534,2]
[314000481,1707919867585,-816.72,0.00037534,2]
[314000482,1707919867594,-688.03,0.00037534,2]
[314000483,1707919867603,-607.99,0.00037534,2]
[314000484,1707919867613,-931.31,0.00037534,2]
[314000485,1707919867622,-1403.05,0.00037534,2]
[314000486,1707919867633,-2682.92,0.00037534,2]
[314000487,1707919867642,-500.0,0.00037534,2]
[314000488,1707919867652,-1109.86,0.00037534,2]
[314000489,1707919867662,-500.0,0.00037534,2]
[314000490,1707919867671,-2049.89,0.00037534,2]
[314000491,1707919867681,-2269.21,0.00037534,2]
[314000492,1707919867691,-569.93,0.00037534,2]
[314000493,1707919867700,-500.0,0.00037534,2]
[314000494,1707919867709,-500.0,0.00037534,2]
[314000495,1707919867719,-3585.64,0.00037534,2]
[314000496,1707919867728,-500.0,0.00037534,2]
[314000497,1707919867740,-907.59,0.00037534,2]
[314000498,1707919867750,-500.0,0.00037534,2]
[314000499,1707919867760,-2666.8,0.00037534,2]
[314000500,1707919867770,-821.08,0.00037534,2]
[314000501,1707919867780,-1099.8,0.00037534,2]
[314000502,1707919867790,-619.0,0.00037534,2]
[314000503,1707919867799,-1772.22,0.00037534,2]